fUST/lending_fUST_20251003
["ID","MTS","AMOUNT","RATE_DAILY","PERIOD"]
[388865003,1759437055223,-500.0,0.00019452,2]
[388865004,1759437055234,-3414.64,0.00019452,2]
[388865005,1759437055243,-500.0,0.00019452,2]
[388865006,1759437055254,-591.08,0.00019452,2]
[388865007,1759437055263,-500.0,0.00019452,2]
[388865008,1759437055274,-500.0,0.00019452,2]
[388865009,1759437055284,-835.82,0.00019452,2]
[388865010,1759437055294,-500.0,0.00019452,2]
[388865011,1759437055304,-423.04480528,0.00019452,2]
[388865012,1759437055313,-2273.98,0.00019452,2]
[388865013,1759437055323,-3773.25,0.00019452,2]
[388865014,1759437055333,-500.0,0.00019452,2]
[388865015,1759437055343,-500.0,0.00019452,2]
[388865016,1759437055352,-882.15,0.00019452,2]
[388865017,1759437055362,-500.0,0.00019452,2]
[388865018,1759437055371,-525.3,0.00019452,2]
[388865019,1759437055381,-500.0,0.00019473,2]
[388865020,1759437055390,-238.81431827,0.00019473,2]
[388865021,1759437055400,-500.0,0.00019473,2]
[388865022,1759437055410,-568.98373301,0.00019473,2]
[388865023,1759437055420,-151.0,0.000195,2]
[388865024,1759437055429,-1000.0,0.000195,2]
[388865025,1759437055439,-349.0,0.00019591,2]
[388865026,1759437055449,-151.0,0.000196,2]
[388865027,1759437055458,-562.0,0.00019608,2]
[388865028,1759437055468,-151.0,0.00019625,2]
[388865029,1759437055477,-1148.0,0.00019625,2]
[388865030,1759437055487,-176.75575821,0.00019626,2]
[388865031,1759437055497,-562.0,0.00019652,2]
[388865032,1759437055507,-1500.0,0.00019668,2]
[388865033,1759437055516,-1500.0,0.00019668,2]
[388865034,1759437055527,-1500.0,0.00019668,2]
[388865035,1759437055537,-151.0,0.00019697,2]
[388865036,1759437055547,-391.19863178,0.00019721,2]
[388865037,1759437055556,-536.4703522,0.00019721,2]
[388865038,1759437055566,-1000.0,0.00019721,2]
[388865039,1759437055576,-1000.02774806,0.00019721,2]
[388865040,1759437055585,-1000.0,0.00019721,2]
[388865041,1759437055595,-1000.0,0.00019721,2]
[388865042,1759437055605,-510.09024853,0.00019721,2]
[388865043,1759437055614,-1000.0,0.00019721,2]
[388865044,1759437055624,-500.0,0.00019721,2]
[388865045,1759437055634,-502.75738484,0.00019721,2]
[388865046,1759437055644,-1000.0,0.00019721,2]
[388865047,1759437055654,-1000.0,0.00019721,2]
[388865048,1759437055663,-1000.0,0.00019721,2]
[388865049,1759437055672,-500.7190137,0.00019721,2]
[388865050,1759437055682,-1000.0,0.00019721,2]
[388865051,1759437055693,-1000.0,0.00019721,2]
[388865052,1759437055703,-500.0,0.00019721,2]
[388865053,1759437055713,-1000.0,0.00019721,2]
[388865054,1759437055723,-1000.0,0.00019721,2]
[388865055,1759437055733,-1000.0,0.00019721,2]
[388865056,1759437055744,-1000.0,0.00019721,2]
[388865057,1759437055758,-1000.0,0.00019721,2]
[388865058,1759437055768,-1000.0,0.00019721,2]
[388865059,1759437055778,-1000.0,0.00019721,2]
[388865060,1759437055788,-500.0,0.00019726,2]
[388865061,1759437055799,-500.0,0.00019726,2]
[388865062,1759437055809,-500.0,0.00019726,2]
[388865063,1759437055819,-335.45985832,0.00019726,2]
[388865064,1759437055830,-500.0,0.00019726,2]
[388865065,1759437055839,-500.0,0.00019726,2]
[388865066,1759437055850,-500.0,0.00019726,2]
[388865067,1759437055859,-500.0,0.00019726,2]
[388865068,1759437055870,-363.55449242,0.00019726,2]
[388865069,1759437055880,-500.0,0.00019726,2]
[388865070,1759437055895,-500.0,0.00019726,2]
[388865071,1759437055912,-500.0,0.00019726,2]
[388865072,1759437055923,-500.0,0.00019726,2]
[388865073,1759437055934,-500.0,0.00019726,2]
[388865074,1759437055944,-785.78,0.00019726,2]
[388865075,1759437055953,-174.13132607,0.00019726,2]
[388865076,1759437055962,-500.0,0.00019726,2]
[388865077,1759437055972,-161.91414948,0.00019726,2]
[388865078,1759437055981,-500.0,0.00019726,2]
[388865079,1759437055991,-572.11414966,0.00019726,2]
[388865080,1759437056001,-386.16272558,0.00019726,2]
[388865081,1759437056011,-500.0,0.00019726,2]
[388865082,1759437056021,-500.0,0.00019726,2]
[388865083,1759437056032,-500.0,0.00019726,2]
[388865084,1759437056042,-500.0,0.00019726,2]
[388865085,1759437056052,-500.0,0.00019726,2]
[388865086,1759437056062,-500.0,0.00019726,2]
[388865087,1759437056072,-500.0,0.00019726,2]
[388865088,1759437056082,-500.0,0.00019726,2]
[388865089,1759437056092,-705.99,0.00019726,2]
[388865090,1759437056102,-500.0,0.00019726,2]
[388865091,1759437056111,-500.0,0.00019726,2]
[388865092,1759437056121,-635.84253237,0.00019726,2]
[388865093,1759437056131,-500.0,0.00019726,2]
[388865094,1759437056140,-500.0,0.00019726,2]
[388865095,1759437056150,-500.0,0.00019726,2]
[388865096,1759437056160,-786.81,0.00019726,2]
[388865097,1759437056170,-500.0,0.00019726,2]
[388865098,1759437056180,-500.0,0.00019726,2]
[388865099,1759437056191,-500.0,0.00019726,2]
[388865100,1759437056201,-500.0,0.00019726,2]
[388865101,1759437056211,-500.0,0.00019726,2]
[388865102,1759437056221,-500.0,0.00019726,2]
[388865103,1759437056231,-500.0,0.00019726,2]
[388865104,1759437056241,-500.0,0.00019726,2]
[388865105,1759437056251,-500.0,0.00019726,2]
[388865106,1759437056261,-500.0,0.00019726,2]
[388865107,1759437056271,-614.55,0.00019726,2]
[388865108,1759437056282,-998.02,0.00019726,2]
[388865109,1759437056449,-618.61,0.00019726,2]
[388865110,1759437056482,-1143.86,0.00019726,2]
[388865111,1759437056492,-500.0,0.00019726,2]
[388865112,1759437056501,-520.0,0.00019726,3]
[388865113,1759437056511,-500.0,0.00019726,2]
[388865114,1759437056520,-500.0,0.00019726,2]
[388865115,1759437056530,-500.0,0.00019726,2]
[388865116,1759437056539,-500.0,0.00019726,2]
[388865117,1759437056549,-500.0,0.00019726,2]
[388865118,1759437056559,-500.0,0.00019726,2]
[388865119,1759437056568,-500.0,0.00019726,2]
[388865120,1759437056577,-944.51,0.00019726,2]
[388865121,1759437056587,-500.0,0.00019726,2]
[388865122,1759437056596,-500.0,0.00019726,2]
[388865123,1759437056606,-644.37,0.00019726,2]
[388865124,1759437056615,-500.0,0.00019726,2]
[388865125,1759437056624,-1194.41,0.00019726,2]
[388865126,1759437056634,-250.83731022,0.00019726,2]
[388865127,1759437056644,-500.0,0.00019726,2]
[388865128,1759437056653,-512.86,0.00019726,2]
[388865129,1759437056662,-635.21030782,0.00019726,2]
[388865130,1759437056671,-500.0,0.00019726,2]
[388865131,1759437056681,-500.0,0.00019726,2]
[388865132,1759437056691,-500.0,0.00019726,2]
[388865133,1759437056701,-500.0,0.00019726,2]
[388865134,1759437056710,-500.0,0.00019726,2]
[388865135,1759437056720,-500.0,0.00019726,2]
[388865136,1759437056730,-500.0,0.00019726,2]
[388865137,1759437056739,-500.0,0.00019726,2]
[388865138,1759437056754,-500.0,0.00019726,2]
[388865139,1759437056763,-2231.11,0.00019726,2]
[388865140,1759437056773,-500.0,0.00019726,2]
[388865141,1759437056783,-500.0,0.00019726,2]
[388865142,1759437056795,-534.8,0.00019726,2]
[388865143,1759437056804,-500.0,0.00019726,2]
[388865144,1759437056818,-500.0,0.00019726,2]
[388865145,1759437056835,-500.0,0.00019726,2]
[388865146,1759437056845,-500.0,0.00019726,2]
[388865147,1759437056854,-500.0,0.00019726,2]
[388865148,1759437056865,-500.0,0.00019726,2]
[388865149,1759437056874,-500.0,0.00019726,2]
[388865150,1759437056884,-659.83,0.00019726,2]
[388865151,1759437056893,-500.0,0.00019726,2]
[388865152,1759437056903,-500.0,0.00019726,2]
[388865153,1759437056912,-500.0,0.00019726,2]
[388865154,1759437056922,-819.53,0.00019726,2]
[388865155,1759437056932,-522.20676117,0.00019726,2]
[388865156,1759437056941,-1409.88,0.00019726,2]
[388865157,1759437056951,-500.0,0.00019726,2]
[388865158,1759437056960,-500.0,0.00019726,2]
[388865159,1759437056970,-500.0,0.00019726,2]
[388865160,1759437056979,-500.0,0.00019726,2]
[388865161,1759437056989,-500.0,0.00019726,2]
[388865162,1759437056999,-594.95,0.00019726,2]
[388865163,1759437057009,-500.0,0.00019726,2]
[388865164,1759437057019,-500.0,0.00019726,2]
[388865165,1759437057028,-500.0,0.00019726,2]
[388865166,1759437057037,-500.0,0.00019726,2]
[388865167,1759437057047,-947.28,0.00019726,2]
[388865168,1759437057056,-500.0,0.00019726,2]
[388865169,1759437057066,-500.0,0.00019726,2]
[388865170,1759437057075,-500.0,0.00019726,2]
[388865171,1759437057085,-500.0,0.00019726,2]
[388865172,1759437057094,-500.0,0.00019726,2]
[388865173,1759437057104,-552.43,0.00019726,2]
[388865174,1759437057113,-627.05,0.00019726,2]
[388865175,1759437057123,-647.04,0.00019726,2]
[388865176,1759437057132,-500.0,0.00019726,2]
[388865177,1759437057142,-563.05,0.00019726,2]
[388865178,1759437057151,-845.39,0.00019726,2]
[388865179,1759437057165,-645.77636546,0.00019726,2]
[388865180,1759437057175,-500.0,0.00019726,2]
[388865181,1759437057185,-530.13,0.00019726,2]
[388865182,1759437057194,-500.0,0.00019726,2]
[388865183,1759437057204,-800.14,0.00019726,2]
[388865184,1759437057214,-338.69486661,0.00019726,2]
[388865185,1759437057224,-500.0,0.00019726,2]
[388865186,1759437057234,-724.38,0.00019726,2]
[388865187,1759437057244,-446.08221498,0.00019726,2]
[388865188,1759437057254,-658.87,0.00019726,2]
[388865189,1759437057265,-500.0,0.00019726,2]
[388865190,1759437057275,-500.0,0.00019726,2]
[388865191,1759437057285,-500.0,0.00019726,2]
[388865192,1759437057295,-610.78775262,0.00019726,2]
[388865193,1759437057304,-2707.34,0.00019726,2]
[388865194,1759437057314,-500.0,0.00019726,2]
[388865195,1759437057325,-500.0,0.00019726,2]
[388865196,1759437057335,-590.37,0.00019726,2]
[388865197,1759437057345,-500.0,0.00019726,2]
[388865198,1759437057354,-814.87,0.00019726,2]
[388865199,1759437057364,-572.54,0.00019726,2]
[388865200,1759437057374,-581.14,0.00019726,2]
[388865201,1759437057384,-593.81,0.00019726,2]
[388865202,1759437057394,-500.0,0.00019726,2]
[388865203,1759437057403,-500.0,0.00019726,2]
[388865204,1759437057414,-500.0,0.00019726,2]
[388865205,1759437057424,-500.0,0.00019726,2]
[388865206,1759437057434,-500.0,0.00019726,2]
[388865207,1759437057444,-500.0,0.00019726,2]
[388865208,1759437057453,-1728.47,0.00019726,2]
[388865209,1759437057463,-500.0,0.00019726,2]
[388865210,1759437057473,-691.05,0.00019726,2]
[388865211,1759437057482,-500.0,0.00019726,2]
[388865212,1759437057492,-2042.86,0.00019726,2]
[388865213,1759437057502,-500.0,0.00019726,2]
[388865214,1759437057512,-500.0,0.00019726,2]
[388865215,1759437057523,-500.0,0.00019726,2]
[388865216,1759437057533,-1231.27,0.00019726,2]
[388865217,1759437057543,-500.0,0.00019726,2]
[388865218,1759437057553,-834.34,0.00019726,2]
[388865219,1759437057562,-466.6873043,0.00019726,2]
[388865220,1759437057572,-500.0,0.00019726,2]
[388865221,1759437057582,-712.5,0.00019726,2]
[388865222,1759437057591,-500.0,0.00019726,2]
[388865223,1759437057600,-1833.99,0.00019726,2]
[388865224,1759437057610,-994.31,0.00019726,2]
[388865225,1759437057619,-500.0,0.00019726,2]
[388865226,1759437057629,-830.69,0.00019726,2]
[388865227,1759437057638,-500.0,0.00019726,2]
[388865228,1759437057647,-500.0,0.00019726,2]
[388865229,1759437057656,-500.0,0.00019726,2]
[388865230,1759437057666,-500.0,0.00019726,2]
[388865231,1759437057676,-500.0,0.00019726,2]
[388865232,1759437057685,-500.0,0.00019726,2]
[388865233,1759437057696,-500.0,0.00019726,2]
[388865234,1759437057706,-831.18,0.00019726,2]
[388865235,1759437057716,-581.73,0.00019726,2]
[388865236,1759437057726,-588.17,0.00019726,2]
[388865237,1759437057735,-500.0,0.00019726,2]
[388865238,1759437057744,-500.0,0.00019726,2]
[388865239,1759437057758,-500.0,0.00019726,2]
[388865240,1759437057768,-500.0,0.00019726,2]
[388865241,1759437057777,-1060.63,0.00019726,2]
[388865242,1759437057787,-500.0,0.00019726,2]
[388865243,1759437057798,-264.95639364,0.00019726,2]
[388865244,1759437057807,-422.78638831,0.00019726,2]
[388865245,1759437057820,-500.0,0.00019726,2]
[388865246,1759437057830,-500.0,0.00019726,2]
[388865247,1759437057840,-500.0,0.00019726,2]
[388865248,1759437057850,-500.0,0.00019726,2]
[388865249,1759437057860,-749.89,0.00019726,2]
[388865250,1759437057870,-465.35277729,0.00019726,2]
[388865251,1759437057880,-500.0,0.00019726,2]
[388865252,1759437057889,-500.0,0.00019726,2]
[388865253,1759437057899,-1028.74,0.00019726,2]
[388865254,1759437057908,-500.0,0.00019726,2]
[388865255,1759437057918,-242.76901733,0.00019726,2]
[388865256,1759437057928,-239.80212026,0.00019726,2]
[388865257,1759437057938,-500.0,0.00019726,2]
[388865258,1759437057947,-500.0,0.00019726,2]
[388865259,1759437057956,-500.0,0.00019726,2]
[388865260,1759437057965,-500.0,0.00019726,2]
[388865261,1759437057975,-449.79716888,0.00019726,2]
[388865262,1759437057985,-500.0,0.00019726,2]
[388865263,1759437057995,-500.0,0.00019726,2]
[388865264,1759437058006,-1136.51,0.00019726,2]
[388865265,1759437058016,-500.0,0.00019726,2]
[388865266,1759437058026,-500.0,0.00019726,2]
[388865267,1759437058036,-500.0,0.00019726,2]
[388865268,1759437058046,-1091.15,0.00019726,2]
[388865269,1759437058056,-500.0,0.00019726,2]
[388865270,1759437058066,-500.0,0.00019726,2]
[388865271,1759437058075,-636.0,0.00019726,2]
[388865272,1759437058085,-627.58,0.00019726,2]
[388865273,1759437058096,-635.43,0.00019726,2]
[388865274,1759437058105,-500.0,0.00019726,2]
[388865275,1759437058115,-500.0,0.00019726,2]
[388865276,1759437058125,-500.0,0.00019726,2]
[388865277,1759437058135,-500.0,0.00019726,2]
[388865278,1759437058144,-500.0,0.00019726,2]
[388865279,1759437058155,-500.0,0.00019726,2]
[388865280,1759437058164,-576.79,0.00019726,2]
[388865281,1759437058174,-500.0,0.00019726,2]
[388865282,1759437058184,-500.0,0.00019726,2]
[388865283,1759437058194,-500.0,0.00019726,2]
[388865284,1759437058204,-500.0,0.00019726,2]
[388865285,1759437058215,-577.64,0.00019726,2]
[388865286,1759437058227,-500.0,0.00019726,2]
[388865287,1759437058236,-500.0,0.00019726,2]
[388865288,1759437058246,-500.0,0.00019726,2]
[388865289,1759437058256,-500.0,0.00019726,2]
[388865290,1759437058265,-793.6,0.00019726,2]
[388865291,1759437058275,-1446.8,0.00019726,2]
[388865292,1759437058285,-782.98,0.00019726,2]
[388865293,1759437058295,-2409.69,0.00019726,2]
[388865294,1759437058305,-573.59,0.00019726,2]
[388865295,1759437058315,-500.0,0.00019726,2]
[388865296,1759437058325,-527.64,0.00019726,2]
[388865297,1759437058335,-500.0,0.00019726,2]
[388865298,1759437058346,-760.67,0.00019726,2]
[388865299,1759437058356,-500.0,0.00019726,2]
[388865300,1759437058366,-500.0,0.00019726,2]
[388865301,1759437058376,-756.12,0.00019726,2]
[388865302,1759437058386,-326.01731659,0.00019726,2]
[388865303,1759437058396,-535.69,0.00019726,2]
[388865304,1759437058405,-622.95,0.00019726,2]
[388865305,1759437058415,-500.0,0.00019726,2]
[388865306,1759437058424,-500.0,0.00019726,2]
[388865307,1759437058434,-500.0,0.00019726,2]
[388865308,1759437058444,-569.94,0.00019726,2]
[388865309,1759437058454,-500.0,0.00019726,2]
[388865310,1759437058463,-1081.88,0.00019726,2]
[388865311,1759437058473,-500.0,0.00019726,2]
[388865312,1759437058482,-500.0,0.00019726,2]
[388865313,1759437058493,-2537.98,0.00019726,2]
[388865314,1759437058503,-728.19,0.00019726,2]
[388865315,1759437058513,-803.27,0.00019726,2]
[388865316,1759437058523,-500.0,0.00019726,2]
[388865317,1759437058532,-500.0,0.00019726,2]
[388865318,1759437058541,-2465.61,0.00019726,2]
[388865319,1759437058551,-511.81,0.00019726,2]
[388865320,1759437058561,-970.39,0.00019726,2]
[388865321,1759437058571,-1981.18,0.00019726,2]
[388865322,1759437058581,-623.88,0.00019726,2]
[388865323,1759437058591,-1465.61,0.00019726,2]
[388865324,1759437058600,-500.0,0.00019726,2]
[388865325,1759437058610,-500.0,0.00019726,2]
[388865326,1759437058619,-500.0,0.00019726,2]
[388865327,1759437058628,-1372.38,0.00019726,2]
[388865328,1759437058638,-585.53,0.00019726,2]
[388865329,1759437058648,-1634.93,0.00019726,2]
[388865330,1759437058659,-1213.07,0.00019726,2]
[388865331,1759437058669,-1815.58,0.00019726,2]
[388865332,1759437058679,-500.0,0.00019726,2]
[388865333,1759437058689,-1800.49,0.00019726,2]
[388865334,1759437058698,-500.0,0.00019726,2]
[388865335,1759437058709,-500.0,0.00019726,2]
[388865336,1759437058719,-794.15,0.00019726,2]
[388865337,1759437058729,-583.5,0.00019726,2]
[388865338,1759437058739,-856.03,0.00019726,2]
[388865339,1759437058750,-910.49,0.00019726,2]
[388865340,1759437058761,-5866.58,0.00019726,2]
[388865341,1759437058771,-848.85,0.00019726,2]
[388865342,1759437058780,-1791.63,0.00019726,2]
[388865343,1759437058791,-500.0,0.00019726,2]
[388865344,1759437058801,-3623.67,0.00019726,2]
[388865345,1759437058811,-500.0,0.00019726,2]
[388865346,1759437058882,-1904.51,0.00019726,2]
[388865347,1759437058892,-754.7,0.00019726,2]
[388865348,1759437058902,-500.0,0.00019726,2]
[388865349,1759437058912,-621.52,0.00019726,2]
[388865350,1759437058921,-500.0,0.00019726,2]
[388865351,1759437058931,-924.16,0.00019726,2]
[388865352,1759437058941,-500.0,0.00019726,2]
[388865353,1759437058951,-528.14,0.00019726,2]
[388865354,1759437058961,-500.0,0.00019726,2]
[388865355,1759437058971,-1869.45,0.00019726,2]
[388865356,1759437058980,-779.39,0.00019726,2]
[388865357,1759437058989,-940.13,0.00019726,2]
[388865358,1759437058999,-500.0,0.00019726,2]
[388865359,1759437059009,-1345.69,0.00019726,2]
[388865360,1759437059018,-500.0,0.00019726,2]
[388865361,1759437059028,-500.0,0.00019726,2]
[388865362,1759437059038,-500.0,0.00019726,2]
[388865363,1759437059048,-503.89,0.00019726,2]
[388865364,1759437059058,-626.27,0.00019726,2]
[388865365,1759437059068,-500.0,0.00019726,2]
[388865366,1759437059078,-500.0,0.00019726,2]
[388865367,1759437059088,-1808.08,0.00019726,2]
[388865368,1759437059099,-6543.06,0.00019726,2]
[388865369,1759437059108,-713.26,0.00019726,2]
[388865370,1759437059118,-500.0,0.00019726,2]
[388865371,1759437059127,-500.0,0.00019726,2]
[388865372,1759437059137,-240.88627299,0.00019726,2]
[388865373,1759437059147,-500.0,0.00019726,2]
[388865374,1759437059156,-1362.78,0.00019726,2]
[388865375,1759437059166,-500.0,0.00019726,2]
[388865376,1759437059175,-500.0,0.00019726,2]
[388865377,1759437059186,-177.31926021,0.00019726,2]
[388865378,1759437059195,-791.0,0.00019726,2]
[388865379,1759437059204,-500.0,0.00019726,2]
[388865380,1759437059214,-500.0,0.00019726,2]
[388865381,1759437059224,-500.0,0.00019726,2]
[388865382,1759437059234,-1501.27,0.00019726,2]
[388865383,1759437059244,-500.0,0.00019726,2]
[388865384,1759437059254,-500.0,0.00019726,2]
[388865385,1759437059264,-5178.1,0.00019726,2]
[388865386,1759437059273,-837.18,0.00019726,2]
[388865387,1759437059282,-3551.68,0.00019726,2]
[388865388,1759437059292,-1101.28,0.00019726,2]
[388865389,1759437059302,-500.0,0.00019726,2]
[388865390,1759437059312,-451.44928523,0.00019726,2]
[388865391,1759437059321,-2474.57,0.00019726,2]
[388865392,1759437059331,-1360.86,0.00019726,2]
[388865393,1759437059342,-938.0,0.00019726,2]
[388865394,1759437059352,-500.0,0.00019726,2]
[388865395,1759437059361,-1181.05,0.00019726,2]
[388865396,1759437059372,-500.0,0.00019726,2]
[388865397,1759437059381,-529.66,0.00019726,2]
[388865398,1759437059391,-600.6,0.00019726,2]
[388865399,1759437059400,-500.0,0.00019726,2]
[388865400,1759437059413,-500.0,0.00019726,2]
[388865401,1759437059423,-500.0,0.00019726,2]
[388865402,1759437059433,-736.6,0.00019726,2]
[388865403,1759437059443,-857.34,0.00019726,2]
[388865404,1759437059452,-1097.68,0.00019726,2]
[388865405,1759437059462,-500.0,0.00019726,2]
[388865406,1759437059473,-500.0,0.00019726,2]
[388865407,1759437059483,-500.0,0.00019726,2]
[388865408,1759437059495,-3071.7,0.00019726,2]
[388865409,1759437059506,-1045.43,0.00019726,2]
[388865410,1759437059516,-993.83,0.00019726,2]
[388865411,1759437059526,-500.0,0.00019726,2]
[388865412,1759437059535,-1078.91,0.00019726,2]
[388865413,1759437059544,-717.01,0.00019726,2]
[388865414,1759437059553,-3247.88,0.00019726,2]
[388865415,1759437059563,-500.0,0.00019726,2]
[388865416,1759437059573,-201.36409561,0.00019726,2]
[388865417,1759437059583,-500.0,0.00019726,2]
[388865418,1759437059592,-500.0,0.00019726,2]
[388865419,1759437059603,-957.09,0.00019726,2]
[388865420,1759437059614,-870.51,0.00019726,2]
[388865421,1759437059623,-500.0,0.00019726,2]
[388865422,1759437059632,-500.0,0.00019726,2]
[388865423,1759437059642,-500.0,0.00019726,2]
[388865424,1759437059651,-2235.88,0.00019726,2]
[388865425,1759437059660,-1662.23,0.00019726,2]
[388865426,1759437059670,-500.0,0.00019726,2]
[388865427,1759437059679,-500.0,0.00019726,2]
[388865428,1759437059688,-500.0,0.00019726,2]
[388865429,1759437059697,-1150.11,0.00019726,2]
[388865430,1759437059707,-1188.35,0.00019726,2]
[388865431,1759437059716,-500.0,0.00019726,2]
[388865432,1759437059725,-352.04070124,0.00019726,2]
[388865433,1759437059735,-629.06277772,0.00019726,2]
[388865434,1759437059744,-904.3,0.00019726,2]
[388865435,1759437059757,-500.0,0.00019726,2]
[388865436,1759437059767,-500.0,0.00019726,2]
[388865437,1759437059776,-1073.96,0.00019726,2]
[388865438,1759437059785,-332.81358871,0.00019726,2]
[388865439,1759437059796,-1286.9,0.00019726,2]
[388865440,1759437059805,-500.0,0.00019726,2]
[388865441,1759437059814,-500.0,0.00019726,2]
[388865442,1759437059825,-789.86,0.00019726,2]
[388865443,1759437059835,-937.94,0.00019726,2]
[388865444,1759437059844,-3414.64,0.00019726,2]
[388865445,1759437059854,-500.0,0.00019726,2]
[388865446,1759437059863,-591.08,0.00019726,2]
[388865447,1759437059873,-500.0,0.00019726,2]
[388865448,1759437059882,-500.0,0.00019726,2]
[388865449,1759437059891,-835.82,0.00019726,2]
[388865450,1759437059901,-500.0,0.00019726,2]
[388865451,1759437059910,-2273.98,0.00019726,2]
[388865452,1759437059919,-3773.25,0.00019726,2]
[388865453,1759437059928,-500.0,0.00019726,2]
[388865454,1759437059938,-500.0,0.00019726,2]
[388865455,1759437059948,-882.15,0.00019726,2]
[388865456,1759437059957,-500.0,0.00019726,2]
[388865457,1759437059967,-525.3,0.00019726,2]
[388865458,1759437059977,-562.0,0.00019727,2]
[388865459,1759437059986,-1813.0,0.00019752,2]
[388865460,1759437059997,-62831.36183665,0.00019763,2]
[388865461,1759437060006,-562.0,0.00019771,2]
[388865462,1759437060016,-500.0,0.00019773,2]
[388865463,1759437060026,-500.0,0.00019773,2]
[388865464,1759437060036,-500.0,0.00019773,2]
[388865465,1759437060046,-500.0,0.00019773,2]
[388865466,1759437060056,-500.0,0.00019773,2]
[388865467,1759437060066,-500.0,0.00019773,2]
[388865468,1759437060075,-500.0,0.00019773,2]
[388865469,1759437060085,-500.0,0.00019773,2]
[388865470,1759437060094,-500.0,0.00019773,2]
[388865471,1759437060104,-500.0,0.00019773,2]
[388865472,1759437060113,-500.0,0.00019773,2]
[388865473,1759437060122,-190.87028624,0.00019773,2]
[388865474,1759437060132,-500.0,0.00019773,2]
[388865475,1759437060141,-500.0,0.00019773,2]
[388865476,1759437060151,-500.0,0.00019773,2]
[388865477,1759437060160,-562.0,0.000198,2]
[388865478,1759437060169,-592.11485074,0.00019821,2]
[388865479,1759437060178,-562.0,0.00019847,2]
[388865480,1759437060187,-562.0,0.00019882,2]
[388865481,1759437060196,-562.0,0.00019895,2]
[388865482,1759437060206,-151.0,0.00019899,2]
[388865483,1759437060215,-1148.0,0.00019899,2]
[388865484,1759437060225,-1000.0,0.000199,2]
[388865485,1759437060235,-199.95210255,0.00019971,2]
[388865486,1759437060245,-500.0,0.0002,2]
[388865487,1759437060254,-160.0,0.0002,3]
[388865488,1759437060263,-500.0,0.0002,2]
[388865489,1759437060272,-500.0,0.0002,2]
[388865490,1759437060282,-589.37,0.0002,2]
[388865491,1759437060291,-500.0,0.0002,2]
[388865492,1759437060300,-500.0,0.0002,2]
[388865493,1759437060309,-500.0,0.0002,2]
[388865494,1759437060318,-500.0,0.0002,2]
[388865495,1759437060328,-500.0,0.0002,2]
[388865496,1759437060337,-500.0,0.0002,2]
[388865497,1759437060346,-500.0,0.0002,2]
[388865498,1759437060355,-500.0,0.0002,2]
[388865499,1759437060365,-785.78,0.0002,2]
[388865500,1759437060374,-500.0,0.0002,2]
[388865501,1759437060384,-500.0,0.0002,2]
[388865502,1759437060393,-500.0,0.0002,2]